[Event "*** Titled Tuesday Blitz"]
[Site "Chess.com"]
[Date "2020.10.20"]
[Round "4"]
[White "TudorAnton"]
[Black "Aleksandar-Topalov"]
[Result "1-0"]
[WhiteElo "2478"]
[BlackElo "2334"]
[TimeControl "180+1"]
[EndTime "10:41:57 PDT"]
[Termination "TudorAnton won by resignation"]

1. d4 {[%clk 0:03:00.9]} 1... Nf6 {[%clk 0:02:59.6]} 2. Nf3 {[%clk 0:02:55.6]}
2... c5 {[%clk 0:02:59.2]} 3. e3 {[%clk 0:02:51.1]} 3... b6 {[%clk 0:02:58.2]}
4. Bd3 {[%clk 0:02:44.5]} 4... Bb7 {[%clk 0:02:57.2]} 5. O-O {[%clk 0:02:42.6]}
5... e6 {[%clk 0:02:56.5]} 6. b3 {[%clk 0:02:43.2]} 6... Be7 {[%clk 0:02:55.5]}
7. Bb2 {[%clk 0:02:43.6]} 7... cxd4 {[%clk 0:02:55.5]} 8. exd4 {[%clk
0:02:42.3]} 8... O-O {[%clk 0:02:54.9]} 9. Nbd2 {[%clk 0:02:41.9]} 9... d6
{[%clk 0:02:51.5]} 10. Re1 {[%clk 0:02:42.2]} 10... Nbd7 {[%clk 0:02:51.3]} 11.
a4 {[%clk 0:02:27.9]} 11... a6 {[%clk 0:02:49.9]} 12. Ne4 {[%clk 0:02:19.8]}
12... Nxe4 {[%clk 0:02:44.9]} 13. Bxe4 {[%clk 0:02:20.7]} 13... Bxe4 {[%clk
0:02:45]} 14. Rxe4 {[%clk 0:02:18.9]} 14... d5 {[%clk 0:02:45.3]} 15. Re3 {[%clk
0:02:17.2]} 15... b5 {[%clk 0:02:41.6]} 16. Ba3 {[%clk 0:02:11.9]} 16... Rc8
{[%clk 0:02:34.6]} 17. Bxe7 {[%clk 0:01:48.4]} 17... Qxe7 {[%clk 0:02:34.1]} 18.
axb5 {[%clk 0:01:49.3]} 18... axb5 {[%clk 0:02:33.8]} 19. Ra7 {[%clk 0:01:47.2]}
19... Qd6 {[%clk 0:02:31.5]} 20. g3 {[%clk 0:01:44]} 20... Rc7 {[%clk
0:02:24.5]} 21. Rxc7 {[%clk 0:01:40.6]} 21... Qxc7 {[%clk 0:02:24.3]} 22. Qd2
{[%clk 0:01:41]} 22... Rc8 {[%clk 0:02:22.5]} 23. Ne1 {[%clk 0:01:37.4]} 23...
Nf6 {[%clk 0:02:18.6]} 24. f3 {[%clk 0:01:37.5]} 24... Qb6 {[%clk 0:02:15.3]}
25. Kg2 {[%clk 0:01:33.8]} 25... h6 {[%clk 0:02:14.7]} 26. h3 {[%clk 0:01:32.4]}
26... Ne8 {[%clk 0:02:13.7]} 27. Qb4 {[%clk 0:01:29.9]} 27... Qc6 {[%clk
0:02:01.1]} 28. Re2 {[%clk 0:01:25.9]} 28... Nd6 {[%clk 0:02:00.8]} 29. Nd3
{[%clk 0:01:25.1]} 29... Nf5 {[%clk 0:01:51.4]} 30. g4 {[%clk 0:01:24.5]} 30...
Nh4+ {[%clk 0:01:49.7]} 31. Kg3 {[%clk 0:01:24.8]} 31... g5 {[%clk 0:01:41.1]}
32. Ne5 {[%clk 0:01:21.3]} 32... Qc3 {[%clk 0:01:36.3]} 33. Qxc3 {[%clk
0:01:19]} 33... Rxc3 {[%clk 0:01:35.2]} 34. Nd3 {[%clk 0:01:14.7]} 34... Kf8
{[%clk 0:01:29.4]} 35. f4 {[%clk 0:01:13.7]} 35... Ke7 {[%clk 0:01:29.6]} 36.
fxg5 {[%clk 0:01:09.6]} 36... hxg5 {[%clk 0:01:29.1]} 37. Kf2 {[%clk 0:01:08.7]}
37... f6 {[%clk 0:01:25]} 38. Ke3 {[%clk 0:01:08.9]} 38... Kd6 {[%clk
0:01:23.4]} 39. Kd2 {[%clk 0:01:09.1]} 39... Rc8 {[%clk 0:01:23.4]} 40. Rf2
{[%clk 0:01:08]} 40... Ke7 {[%clk 0:01:16.3]} 41. Rf1 {[%clk 0:01:05.6]} 41...
Ng6 {[%clk 0:01:15.8]} 42. Ra1 {[%clk 0:01:04.3]} 42... Rh8 {[%clk 0:01:13.5]}
43. Ra7+ {[%clk 0:01:04.2]} 43... Kd6 {[%clk 0:01:13.2]} 44. Ra6+ {[%clk
0:01:04.6]} 44... Ke7 {[%clk 0:01:13.3]} 45. Nc5 {[%clk 0:01:04.7]} 45... Nf8
{[%clk 0:01:10.4]} 46. Ra7+ {[%clk 0:00:56.4]} 46... Ke8 {[%clk 0:01:10.3]} 47.
Nb7 {[%clk 0:00:51.5]} 47... Kf7 {[%clk 0:00:58.9]} 48. Nd6+ {[%clk 0:00:49.8]}
48... Kg6 {[%clk 0:00:59.2]} 49. Ra8 {[%clk 0:00:45.6]} 49... Kg7 {[%clk
0:00:56.3]} 50. Nxb5 {[%clk 0:00:45.5]} 50... Rxh3 {[%clk 0:00:55.2]} 51. Nd6
{[%clk 0:00:45.8]} 51... Ng6 {[%clk 0:00:47.9]} 52. Ra7+ {[%clk 0:00:42.3]}
52... Kg8 {[%clk 0:00:46.1]} 53. Ne8 {[%clk 0:00:40.1]} 53... f5 {[%clk
0:00:44.7]} 54. Rg7+ {[%clk 0:00:36.8]} 54... Kf8 {[%clk 0:00:44.5]} 55. Rxg6
{[%clk 0:00:37.7]} 55... Kxe8 {[%clk 0:00:44.6]} 56. Rxe6+ {[%clk 0:00:38.3]}
56... Kd7 {[%clk 0:00:43.6]} 57. gxf5 {[%clk 0:00:39.2]} 57... g4 {[%clk
0:00:43.5]} 58. Rg6 {[%clk 0:00:39.4]} 58... g3 {[%clk 0:00:43.4]} 59. b4 {[%clk
0:00:35.4]} 59... Rh2+ {[%clk 0:00:38.8]} 60. Kc3 {[%clk 0:00:35.6]} 60... g2
{[%clk 0:00:39.5]} 61. b5 {[%clk 0:00:35.9]} 61... Kc7 {[%clk 0:00:37.5]} 62.
Kb4 {[%clk 0:00:34.9]} 62... Kb7 {[%clk 0:00:36.4]} 63. Kc5 {[%clk 0:00:32.3]}
63... Kc8 {[%clk 0:00:32.9]} 64. Kxd5 {[%clk 0:00:24.4]} 64... Kb8 {[%clk
0:00:31.7]} 65. c4 {[%clk 0:00:24.6]} 65... Kc8 {[%clk 0:00:31]} 66. c5 {[%clk
0:00:24.9]} 66... Kb8 {[%clk 0:00:31.4]} 67. c6 {[%clk 0:00:24.7]} 67... Kc7
{[%clk 0:00:31.4]} 68. Kc5 {[%clk 0:00:23.3]} 1-0

[Event "*** Titled Tuesday Blitz"]
[Site "Chess.com"]
[Date "2020.10.20"]
[Round "4"]
[White "Barmen_EV"]
[Black "Durarbayli"]
[Result "0-1"]
[WhiteElo "2510"]
[BlackElo "2780"]
[TimeControl "180+1"]
[EndTime "10:41:58 PDT"]
[Termination "Durarbayli won by checkmate"]

1. d4 {[%clk 0:03:00.9]} 1... Nf6 {[%clk 0:02:59.4]} 2. c4 {[%clk 0:03:01.8]}
2... e6 {[%clk 0:02:59.8]} 3. Nc3 {[%clk 0:03:02.2]} 3... Bb4 {[%clk 0:02:58.4]}
4. e3 {[%clk 0:03:02.5]} 4... O-O {[%clk 0:02:56.5]} 5. a3 {[%clk 0:03:03.4]}
5... Bxc3+ {[%clk 0:02:55.4]} 6. bxc3 {[%clk 0:03:04.3]} 6... b6 {[%clk
0:02:55.1]} 7. Bd3 {[%clk 0:03:04.5]} 7... Ba6 {[%clk 0:02:53.4]} 8. Ne2 {[%clk
0:03:05.4]} 8... Nc6 {[%clk 0:02:51]} 9. O-O {[%clk 0:03:03.9]} 9... Na5 {[%clk
0:02:48.7]} 10. e4 {[%clk 0:03:03.3]} 10... Ne8 {[%clk 0:02:39.4]} 11. Ng3
{[%clk 0:02:57.2]} 11... Bxc4 {[%clk 0:02:36.6]} 12. f4 {[%clk 0:02:57.1]} 12...
Bxd3 {[%clk 0:02:29.2]} 13. Qxd3 {[%clk 0:02:58]} 13... Nb3 {[%clk 0:02:25.9]}
14. Rb1 {[%clk 0:02:56.5]} 14... Nxc1 {[%clk 0:02:26.1]} 15. Rbxc1 {[%clk
0:02:56.9]} 15... d5 {[%clk 0:02:24.8]} 16. e5 {[%clk 0:02:46.4]} 16... g6
{[%clk 0:02:20]} 17. Rf3 {[%clk 0:02:44.6]} 17... Ng7 {[%clk 0:02:19.3]} 18.
Rcf1 {[%clk 0:02:44]} 18... c5 {[%clk 0:02:17.5]} 19. Ne2 {[%clk 0:02:43.2]}
19... h5 {[%clk 0:02:10.2]} 20. h3 {[%clk 0:02:39.8]} 20... h4 {[%clk
0:02:08.9]} 21. Kh2 {[%clk 0:02:40.1]} 21... Rc8 {[%clk 0:02:02]} 22. R3f2
{[%clk 0:02:33.6]} 22... Nf5 {[%clk 0:01:52.4]} 23. Ng1 {[%clk 0:02:30.3]} 23...
cxd4 {[%clk 0:01:51]} 24. cxd4 {[%clk 0:02:30.4]} 24... Rc4 {[%clk 0:01:51.3]}
25. Nf3 {[%clk 0:02:30.2]} 25... Qe7 {[%clk 0:01:46]} 26. Rd1 {[%clk 0:02:24.9]}
26... Rfc8 {[%clk 0:01:45.1]} 27. Qe2 {[%clk 0:02:23.1]} 27... Qxa3 {[%clk
0:01:38.9]} 28. Qe1 {[%clk 0:02:20]} 28... Rc2 {[%clk 0:01:30.8]} 29. Rxc2
{[%clk 0:02:17]} 29... Rxc2 {[%clk 0:01:31.7]} 30. Nxh4 {[%clk 0:02:17.9]} 30...
Qb2 {[%clk 0:01:13.2]} 31. Kh1 {[%clk 0:01:17.8]} 31... Re2 {[%clk 0:01:03.4]}
32. Qf1 {[%clk 0:01:05.1]} 32... Ng3+ {[%clk 0:00:59.3]} 33. Kh2 {[%clk
0:00:59.4]} 33... Nxf1+ {[%clk 0:01:00.2]} 34. Rxf1 {[%clk 0:01:00.3]} 34...
Qxd4 {[%clk 0:00:58.8]} 35. Nf3 {[%clk 0:00:59.4]} 35... Qxf4+ {[%clk
0:00:57.5]} 36. Kh1 {[%clk 0:01:00.3]} 36... Qg3 {[%clk 0:00:57.4]} 37. Rg1
{[%clk 0:01:01.2]} 37... a5 {[%clk 0:00:50]} 38. Nd4 {[%clk 0:00:58.5]} 38...
Rxe5 {[%clk 0:00:49.5]} 39. Nf3 {[%clk 0:00:57.8]} 39... Re3 {[%clk 0:00:48.4]}
40. Rf1 {[%clk 0:00:58.3]} 40... a4 {[%clk 0:00:48]} 41. Nd2 {[%clk 0:00:57.9]}
41... a3 {[%clk 0:00:46.8]} 42. Nf3 {[%clk 0:00:55.8]} 42... b5 {[%clk
0:00:44.4]} 43. Ra1 {[%clk 0:00:56.7]} 43... b4 {[%clk 0:00:44.1]} 44. Rc1
{[%clk 0:00:57.4]} 44... Kg7 {[%clk 0:00:43.3]} 45. Rc8 {[%clk 0:00:58.3]} 45...
Rxf3 {[%clk 0:00:41.3]} 46. Rc1 {[%clk 0:00:59.2]} 46... Rf2 {[%clk 0:00:40.3]}
47. Rg1 {[%clk 0:01:00.1]} 47... a2 {[%clk 0:00:40.4]} 48. h4 {[%clk 0:00:02]}
48... b3 {[%clk 0:00:37.3]} 49. Rf1 {[%clk 0:00:02.9]} 49... b2 {[%clk
0:00:23.1]} 50. Kg1 {[%clk 0:00:03.8]} 50... Qxg2# {[%clk 0:00:19.2]} 0-1

[Event "*** Titled Tuesday Blitz"]
[Site "Chess.com"]
[Date "2020.10.20"]
[Round "4"]
[White "K_A_S_T_O_R"]
[Black "Semetey"]
[Result "1-0"]
[WhiteElo "2823"]
[BlackElo "2524"]
[TimeControl "180+1"]
[EndTime "10:42:00 PDT"]
[Termination "K_A_S_T_O_R won by checkmate"]

1. e4 {[%clk 0:03:00.9]} 1... e5 {[%clk 0:02:59.2]} 2. Nf3 {[%clk 0:03:00.9]}
2... Nc6 {[%clk 0:02:57.1]} 3. Bb5 {[%clk 0:03:01.4]} 3... a6 {[%clk 0:02:54.4]}
4. Ba4 {[%clk 0:03:01.6]} 4... Nf6 {[%clk 0:02:54.2]} 5. O-O {[%clk 0:03:02.1]}
5... Be7 {[%clk 0:02:49.8]} 6. Re1 {[%clk 0:03:02]} 6... b5 {[%clk 0:02:49.4]}
7. Bb3 {[%clk 0:03:02.6]} 7... O-O {[%clk 0:02:49.2]} 8. a4 {[%clk 0:03:02.4]}
8... Rb8 {[%clk 0:02:48.2]} 9. axb5 {[%clk 0:03:01.9]} 9... axb5 {[%clk
0:02:49.1]} 10. d3 {[%clk 0:02:57.3]} 10... d6 {[%clk 0:02:48.3]} 11. c3 {[%clk
0:02:52.5]} 11... Bg4 {[%clk 0:02:47.9]} 12. h3 {[%clk 0:02:51.4]} 12... Bh5
{[%clk 0:02:47.2]} 13. Nbd2 {[%clk 0:02:51.1]} 13... Nd7 {[%clk 0:02:39.6]} 14.
Bd5 {[%clk 0:02:46.6]} 14... Rb6 {[%clk 0:02:30.5]} 15. Nb3 {[%clk 0:02:33.9]}
15... Qc8 {[%clk 0:02:29.9]} 16. Be3 {[%clk 0:02:28.7]} 16... Ra6 {[%clk
0:02:30.1]} 17. g4 {[%clk 0:02:14.9]} 17... Bg6 {[%clk 0:02:29.1]} 18. Nbd2
{[%clk 0:02:15]} 18... Nd8 {[%clk 0:02:22.1]} 19. Rxa6 {[%clk 0:02:12.6]} 19...
Qxa6 {[%clk 0:02:22.5]} 20. Qa1 {[%clk 0:02:11.3]} 20... Qc8 {[%clk 0:02:19.1]}
21. Kh2 {[%clk 0:02:06.8]} 21... c6 {[%clk 0:02:18.8]} 22. Bb3 {[%clk
0:02:06.6]} 22... Ne6 {[%clk 0:01:46.8]} 23. d4 {[%clk 0:01:46.9]} 23... c5
{[%clk 0:01:21.4]} 24. Bxe6 {[%clk 0:01:37.5]} 24... fxe6 {[%clk 0:01:22.3]} 25.
dxe5 {[%clk 0:01:37.5]} 25... Nxe5 {[%clk 0:01:17.6]} 26. Nxe5 {[%clk
0:01:34.8]} 26... dxe5 {[%clk 0:01:18.5]} 27. Qa7 {[%clk 0:01:30.3]} 27... Rf7
{[%clk 0:01:11.2]} 28. Qb6 {[%clk 0:01:26.8]} 28... Qd7 {[%clk 0:00:53.9]} 29.
Kg1 {[%clk 0:01:20.3]} 29... c4 {[%clk 0:00:53.6]} 30. Ra1 {[%clk 0:01:13.4]}
30... Rf8 {[%clk 0:00:51.3]} 31. Ra7 {[%clk 0:01:10.9]} 31... Qd6 {[%clk
0:00:43.6]} 32. Qxb5 {[%clk 0:01:04.5]} 32... Bh4 {[%clk 0:00:43.3]} 33. Rd7
{[%clk 0:00:57.2]} 33... Qb8 {[%clk 0:00:34.9]} 34. Qxb8 {[%clk 0:00:54.1]}
34... Rxb8 {[%clk 0:00:35.8]} 35. Nf3 {[%clk 0:00:41.8]} 35... Bf6 {[%clk
0:00:22.6]} 36. g5 {[%clk 0:00:41]} 36... Bd8 {[%clk 0:00:19.7]} 37. Nd2 {[%clk
0:00:39.5]} 37... Bb6 {[%clk 0:00:15.2]} 38. Bxb6 {[%clk 0:00:37.5]} 38... Rxb6
{[%clk 0:00:16.1]} 39. Nxc4 {[%clk 0:00:37.7]} 39... Rb8 {[%clk 0:00:13.2]} 40.
f3 {[%clk 0:00:36.3]} 40... Bh5 {[%clk 0:00:12.4]} 41. Kf2 {[%clk 0:00:36.2]}
41... Be8 {[%clk 0:00:11]} 42. Rc7 {[%clk 0:00:33.5]} 42... Bb5 {[%clk
0:00:11.9]} 43. Nxe5 {[%clk 0:00:33.2]} 43... Ba4 {[%clk 0:00:11.5]} 44. b4
{[%clk 0:00:33.7]} 44... Rd8 {[%clk 0:00:11]} 45. Ke3 {[%clk 0:00:33.8]} 45...
h6 {[%clk 0:00:09.7]} 46. g6 {[%clk 0:00:33.3]} 46... Be8 {[%clk 0:00:06.6]} 47.
h4 {[%clk 0:00:33]} 47... Kf8 {[%clk 0:00:03.3]} 48. h5 {[%clk 0:00:32.9]} 48...
Rd1 {[%clk 0:00:02.3]} 49. c4 {[%clk 0:00:31.7]} 49... Rb1 {[%clk 0:00:02.9]}
50. b5 {[%clk 0:00:31.7]} 50... Rb3+ {[%clk 0:00:03.8]} 51. Kf4 {[%clk
0:00:31.8]} 51... Rb1 {[%clk 0:00:03.7]} 52. Rb7 {[%clk 0:00:31.4]} 52... Rh1
{[%clk 0:00:04]} 53. c5 {[%clk 0:00:31.5]} 53... Rxh5 {[%clk 0:00:04.9]} 54. c6
{[%clk 0:00:31.8]} 54... Rh4+ {[%clk 0:00:05]} 55. Ke3 {[%clk 0:00:32]} 55...
Rh1 {[%clk 0:00:05]} 56. c7 {[%clk 0:00:31.8]} 56... Rc1 {[%clk 0:00:05.9]} 57.
b6 {[%clk 0:00:32.2]} 57... Ke7 {[%clk 0:00:06.2]} 58. c8=Q+ {[%clk 0:00:32.1]}
58... Kf6 {[%clk 0:00:06.7]} 59. Qd8+ {[%clk 0:00:30.5]} 59... Kxe5 {[%clk
0:00:04.4]} 60. f4# {[%clk 0:00:31.4]} 1-0

[Event "*** Titled Tuesday Blitz"]
[Site "Chess.com"]
[Date "2020.10.20"]
[Round "4"]
[White "abhidabhi"]
[Black "Gogolev_Artemy"]
[Result "1-0"]
[WhiteElo "2807"]
[BlackElo "2513"]
[TimeControl "180+1"]
[EndTime "10:42:01 PDT"]
[Termination "abhidabhi won on time"]

1. e4 {[%clk 0:03:00.9]} 1... c6 {[%clk 0:02:56.8]} 2. d4 {[%clk 0:02:58.1]}
2... d5 {[%clk 0:02:56.5]} 3. Nd2 {[%clk 0:02:58.7]} 3... dxe4 {[%clk
0:02:55.6]} 4. Nxe4 {[%clk 0:02:59.6]} 4... Bf5 {[%clk 0:02:55.4]} 5. Ng3 {[%clk
0:02:59]} 5... Bg6 {[%clk 0:02:55.3]} 6. h4 {[%clk 0:02:59.6]} 6... h6 {[%clk
0:02:54.7]} 7. Nf3 {[%clk 0:02:59.6]} 7... Nd7 {[%clk 0:02:54.1]} 8. h5 {[%clk
0:02:59.5]} 8... Bh7 {[%clk 0:02:53.4]} 9. Bd3 {[%clk 0:03:00.4]} 9... Bxd3
{[%clk 0:02:52.7]} 10. Qxd3 {[%clk 0:03:01.3]} 10... Ngf6 {[%clk 0:02:52.7]} 11.
Bd2 {[%clk 0:02:59.3]} 11... e6 {[%clk 0:02:51.5]} 12. O-O-O {[%clk 0:02:59.4]}
12... Be7 {[%clk 0:02:50.4]} 13. Ne4 {[%clk 0:02:54.6]} 13... Nxe4 {[%clk
0:02:48.3]} 14. Qxe4 {[%clk 0:02:54.5]} 14... Nf6 {[%clk 0:02:48.1]} 15. Qe2
{[%clk 0:02:54.4]} 15... Qd5 {[%clk 0:02:38.8]} 16. Kb1 {[%clk 0:02:53.1]} 16...
Qe4 {[%clk 0:02:32.3]} 17. Be3 {[%clk 0:02:49.8]} 17... O-O {[%clk 0:02:19.3]}
18. Ne5 {[%clk 0:01:55.4]} 18... Nd5 {[%clk 0:02:10.7]} 19. Rh3 {[%clk
0:01:37.2]} 19... Rad8 {[%clk 0:01:42.8]} 20. Rg3 {[%clk 0:01:29.6]} 20... Nxe3
{[%clk 0:01:39.7]} 21. Rxe3 {[%clk 0:01:22.9]} 21... Qd5 {[%clk 0:01:25.3]} 22.
c4 {[%clk 0:01:08.9]} 22... Qa5 {[%clk 0:01:18.6]} 23. f4 {[%clk 0:01:01.5]}
23... Bf6 {[%clk 0:00:50.3]} 24. g4 {[%clk 0:00:42.5]} 24... c5 {[%clk 0:00:43]}
25. d5 {[%clk 0:00:40.2]} 25... exd5 {[%clk 0:00:42.4]} 26. cxd5 {[%clk
0:00:40]} 26... Bxe5 {[%clk 0:00:40.1]} 27. fxe5 {[%clk 0:00:34.1]} 27... Rfe8
{[%clk 0:00:35.3]} 28. d6 {[%clk 0:00:29.4]} 28... c4 {[%clk 0:00:31.9]} 29. e6
{[%clk 0:00:25.8]} 29... fxe6 {[%clk 0:00:24.9]} 30. Rxe6 {[%clk 0:00:25.6]}
30... Rxe6 {[%clk 0:00:16]} 31. Qxe6+ {[%clk 0:00:25.4]} 31... Kh7 {[%clk
0:00:15.9]} 32. Qxc4 {[%clk 0:00:24.1]} 32... Qg5 {[%clk 0:00:13]} 33. Qe4+
{[%clk 0:00:23.3]} 33... Kh8 {[%clk 0:00:12.4]} 34. d7 {[%clk 0:00:22.8]} 34...
Qf6 {[%clk 0:00:10.8]} 35. a3 {[%clk 0:00:21.1]} 35... a5 {[%clk 0:00:10.2]} 36.
Qe8+ {[%clk 0:00:19.8]} 36... Kh7 {[%clk 0:00:09.7]} 37. Re1 {[%clk 0:00:15.1]}
37... a4 {[%clk 0:00:08.1]} 38. Ka2 {[%clk 0:00:11.8]} 38... Qb6 {[%clk
0:00:06.6]} 39. Qe4+ {[%clk 0:00:10.7]} 39... Kh8 {[%clk 0:00:05.9]} 40. Ka1
{[%clk 0:00:05.7]} 40... Qc7 {[%clk 0:00:03]} 41. Qe8+ {[%clk 0:00:05.6]} 41...
Kh7 {[%clk 0:00:02.5]} 42. Rd1 {[%clk 0:00:05.7]} 42... Qc2 {[%clk 0:00:01.6]}
43. Qe1 {[%clk 0:00:04.8]} 1-0

[Event "*** Titled Tuesday Blitz"]
[Site "Chess.com"]
[Date "2020.10.20"]
[Round "4"]
[White "barbara25"]
[Black "Berardino"]
[Result "0-1"]
[WhiteElo "2280"]
[BlackElo "2588"]
[TimeControl "180+1"]
[EndTime "10:42:01 PDT"]
[Termination "Berardino won by resignation"]

1. e4 {[%clk 0:03:00.9]} 1... c5 {[%clk 0:02:59.5]} 2. Nf3 {[%clk 0:03:00.3]}
2... b6 {[%clk 0:02:59.9]} 3. Nc3 {[%clk 0:02:59.5]} 3... Bb7 {[%clk 0:02:59.7]}
4. d4 {[%clk 0:02:58.5]} 4... cxd4 {[%clk 0:02:57.6]} 5. Nxd4 {[%clk 0:02:59.4]}
5... Nf6 {[%clk 0:02:57.9]} 6. f3 {[%clk 0:02:59.4]} 6... e6 {[%clk 0:02:56.8]}
7. Be3 {[%clk 0:02:59.4]} 7... Bc5 {[%clk 0:02:56.2]} 8. Qd2 {[%clk 0:02:59.5]}
8... O-O {[%clk 0:02:56.7]} 9. O-O-O {[%clk 0:02:59.2]} 9... d5 {[%clk
0:02:57.1]} 10. e5 {[%clk 0:02:59.1]} 10... Nfd7 {[%clk 0:02:57.4]} 11. f4
{[%clk 0:02:59.6]} 11... Qe7 {[%clk 0:02:57.9]} 12. Kb1 {[%clk 0:02:59.1]} 12...
f6 {[%clk 0:02:56.2]} 13. exf6 {[%clk 0:02:57.6]} 13... Nxf6 {[%clk 0:02:55.9]}
14. g4 {[%clk 0:02:56]} 14... Bb4 {[%clk 0:02:31.3]} 15. Bd3 {[%clk 0:02:53.3]}
15... Nc6 {[%clk 0:02:21.6]} 16. g5 {[%clk 0:02:50.9]} 16... Ne4 {[%clk
0:02:20.7]} 17. Bxe4 {[%clk 0:02:50.5]} 17... dxe4 {[%clk 0:02:21.6]} 18. Nxc6
{[%clk 0:02:50.2]} 18... Bxc6 {[%clk 0:02:21.6]} 19. h4 {[%clk 0:02:36.4]} 19...
Rac8 {[%clk 0:02:20]} 20. h5 {[%clk 0:02:33.8]} 20... Ba8 {[%clk 0:02:06.8]} 21.
h6 {[%clk 0:02:32.5]} 21... g6 {[%clk 0:02:06.4]} 22. Qd7 {[%clk 0:02:23.9]}
22... Rf7 {[%clk 0:01:49.7]} 23. Qxe7 {[%clk 0:02:18.8]} 23... Rxe7 {[%clk
0:01:49]} 24. Bd4 {[%clk 0:02:18.8]} 24... Rd7 {[%clk 0:01:43.6]} 25. Be5 {[%clk
0:02:16.3]} 25... Rcd8 {[%clk 0:01:40.9]} 26. Rxd7 {[%clk 0:02:14.7]} 26... Rxd7
{[%clk 0:01:41.8]} 27. Re1 {[%clk 0:02:13.9]} 27... Bc5 {[%clk 0:01:10.2]} 28.
a3 {[%clk 0:02:06.8]} 28... Bf2 {[%clk 0:01:09]} 29. Re2 {[%clk 0:02:05.8]}
29... e3 {[%clk 0:01:09]} 30. Kc1 {[%clk 0:00:50.3]} 30... Bf3 {[%clk
0:01:07.3]} 31. b4 {[%clk 0:00:41.6]} 31... Rd8 {[%clk 0:00:43.7]} 32. Bf6
{[%clk 0:00:17.9]} 32... Rc8 {[%clk 0:00:39.9]} 33. Kd1 {[%clk 0:00:14.1]} 33...
Kf7 {[%clk 0:00:30.1]} 34. Nb5 {[%clk 0:00:10.3]} 34... Bxe2+ {[%clk 0:00:27.6]}
35. Kxe2 {[%clk 0:00:09.2]} 35... Rxc2+ {[%clk 0:00:28.1]} 36. Kd1 {[%clk
0:00:08.5]} 36... Rd2+ {[%clk 0:00:28.2]} 37. Kc1 {[%clk 0:00:08.8]} 37... Rd5
{[%clk 0:00:26.1]} 38. Nc3 {[%clk 0:00:08.3]} 38... Be1 {[%clk 0:00:22.2]} 39.
Nxd5 {[%clk 0:00:07.8]} 39... exd5 {[%clk 0:00:20.9]} 40. Kd1 {[%clk 0:00:08.1]}
40... Bg3 {[%clk 0:00:19.2]} 41. Be5 {[%clk 0:00:07.6]} 41... Ke6 {[%clk
0:00:19.6]} 42. Ke2 {[%clk 0:00:07.9]} 42... d4 {[%clk 0:00:18.9]} 43. Bxd4
{[%clk 0:00:07.5]} 43... Bxf4 {[%clk 0:00:18.8]} 44. Bxe3 {[%clk 0:00:07.9]}
44... Bxe3 {[%clk 0:00:18.7]} 45. Kxe3 {[%clk 0:00:08]} 45... Kf5 {[%clk
0:00:19.3]} 46. Kd4 {[%clk 0:00:06.1]} 46... Kxg5 {[%clk 0:00:19.6]} 47. Kd5
{[%clk 0:00:07]} 47... Kxh6 {[%clk 0:00:20]} 48. Kc6 {[%clk 0:00:07.9]} 48... g5
{[%clk 0:00:20.5]} 49. Kb7 {[%clk 0:00:08.8]} 49... g4 {[%clk 0:00:21.2]} 50.
Kxa7 {[%clk 0:00:09.7]} 50... g3 {[%clk 0:00:21.8]} 51. Kxb6 {[%clk 0:00:10.6]}
51... g2 {[%clk 0:00:22.4]} 52. a4 {[%clk 0:00:11.5]} 52... g1=Q+ {[%clk
0:00:23]} 53. Ka6 {[%clk 0:00:11.2]} 53... Qd4 {[%clk 0:00:23.1]} 54. Kb5 {[%clk
0:00:10.3]} 54... Kg6 {[%clk 0:00:22.2]} 55. a5 {[%clk 0:00:10.7]} 55... h5
{[%clk 0:00:22.5]} 56. a6 {[%clk 0:00:11.4]} 56... h4 {[%clk 0:00:22.6]} 57. Kc6
{[%clk 0:00:10.6]} 57... h3 {[%clk 0:00:23]} 58. a7 {[%clk 0:00:10.7]} 58...
Qxa7 {[%clk 0:00:20.9]} 0-1

[Event "*** Titled Tuesday Blitz"]
[Site "Chess.com"]
[Date "2020.10.20"]
[Round "4"]
[White "capatl"]
[Black "AttractiveMustard"]
[Result "0-1"]
[WhiteElo "2527"]
[BlackElo "2360"]
[TimeControl "180+1"]
[EndTime "10:42:01 PDT"]
[Termination "AttractiveMustard won by checkmate"]

1. c4 {[%clk 0:03:00.9]} 1... Nf6 {[%clk 0:02:59.1]} 2. Nc3 {[%clk 0:03:00.4]}
2... g6 {[%clk 0:02:57.5]} 3. g3 {[%clk 0:03:00.1]} 3... Bg7 {[%clk 0:02:57.7]}
4. Bg2 {[%clk 0:03:01]} 4... O-O {[%clk 0:02:57.9]} 5. Nf3 {[%clk 0:02:58.3]}
5... d6 {[%clk 0:02:52.9]} 6. O-O {[%clk 0:02:57.2]} 6... e5 {[%clk 0:02:51.2]}
7. d3 {[%clk 0:02:57.1]} 7... Re8 {[%clk 0:02:48.8]} 8. Rb1 {[%clk 0:02:56.7]}
8... a5 {[%clk 0:02:47.2]} 9. a3 {[%clk 0:02:56.5]} 9... c6 {[%clk 0:02:47.2]}
10. b4 {[%clk 0:02:51.5]} 10... axb4 {[%clk 0:02:48.1]} 11. axb4 {[%clk
0:02:51.9]} 11... d5 {[%clk 0:02:48.5]} 12. cxd5 {[%clk 0:02:46.5]} 12... cxd5
{[%clk 0:02:48.5]} 13. Qb3 {[%clk 0:02:27.4]} 13... d4 {[%clk 0:02:23.9]} 14.
Nb5 {[%clk 0:01:46.5]} 14... Be6 {[%clk 0:02:20.9]} 15. Qc2 {[%clk 0:01:41.3]}
15... Nc6 {[%clk 0:02:11.6]} 16. Ng5 {[%clk 0:01:22.8]} 16... Bd5 {[%clk
0:02:03.9]} 17. Ne4 {[%clk 0:00:56.1]} 17... Nxe4 {[%clk 0:01:53.7]} 18. Bxe4
{[%clk 0:00:47.8]} 18... Ra2 {[%clk 0:01:30.7]} 19. Rb2 {[%clk 0:00:43.6]} 19...
Nxb4 {[%clk 0:01:26.4]} 20. Rxa2 {[%clk 0:00:08.7]} 20... Nxc2 {[%clk
0:01:23.6]} 21. Rxc2 {[%clk 0:00:09.6]} 21... Bxe4 {[%clk 0:01:21.6]} 22. dxe4
{[%clk 0:00:10.5]} 22... d3 {[%clk 0:01:18.5]} 23. exd3 {[%clk 0:00:10.3]} 23...
Qxd3 {[%clk 0:01:17.9]} 24. Rb2 {[%clk 0:00:10.9]} 24... Rd8 {[%clk 0:01:03.4]}
25. Bg5 {[%clk 0:00:10.4]} 25... f6 {[%clk 0:01:01.3]} 26. Rd2 {[%clk
0:00:09.8]} 26... Qxd2 {[%clk 0:00:23.3]} 27. Bxd2 {[%clk 0:00:10.7]} 27... Rxd2
{[%clk 0:00:23.8]} 28. Rb1 {[%clk 0:00:11]} 28... Bf8 {[%clk 0:00:22.8]} 29. Nc3
{[%clk 0:00:11.1]} 29... Bc5 {[%clk 0:00:18.7]} 30. Rxb7 {[%clk 0:00:08.9]}
30... Rxf2 {[%clk 0:00:16.4]} 31. Kh1 {[%clk 0:00:09.1]} 31... Rf1+ {[%clk
0:00:13]} 32. Kg2 {[%clk 0:00:08.9]} 32... Rf2+ {[%clk 0:00:13.5]} 33. Kh3
{[%clk 0:00:08.8]} 33... f5 {[%clk 0:00:12]} 34. Nd5 {[%clk 0:00:09.7]} 34...
fxe4 {[%clk 0:00:10]} 35. Rc7 {[%clk 0:00:09.4]} 35... Bd4 {[%clk 0:00:07.7]}
36. Ne7+ {[%clk 0:00:08]} 36... Kf7 {[%clk 0:00:05.8]} 37. Nd5+ {[%clk
0:00:08.3]} 37... Ke6 {[%clk 0:00:05.2]} 38. Nb4 {[%clk 0:00:08.6]} 38... Rb2
{[%clk 0:00:04]} 39. Rb7 {[%clk 0:00:07.6]} 39... Kf5 {[%clk 0:00:02.8]} 40.
Rf7+ {[%clk 0:00:07.4]} 40... Ke6 {[%clk 0:00:02.7]} 41. Rb7 {[%clk 0:00:07.6]}
41... h5 {[%clk 0:00:03.1]} 42. Nc6 {[%clk 0:00:07.5]} 42... Rxb7 {[%clk
0:00:02.5]} 43. Nd8+ {[%clk 0:00:08.4]} 43... Kd7 {[%clk 0:00:02.6]} 44. Nxb7
{[%clk 0:00:09.3]} 44... e3 {[%clk 0:00:03.5]} 45. Na5 {[%clk 0:00:07.4]} 45...
e2 {[%clk 0:00:03.7]} 46. Nc4 {[%clk 0:00:08]} 46... e1=Q {[%clk 0:00:04]} 47.
Nxe5+ {[%clk 0:00:07.4]} 47... Bxe5 {[%clk 0:00:03.6]} 48. g4 {[%clk 0:00:08.3]}
48... Qf1+ {[%clk 0:00:03.3]} 49. Kh4 {[%clk 0:00:08.5]} 49... Bf6+ {[%clk
0:00:03.8]} 50. g5 {[%clk 0:00:08.6]} 50... Qf4+ {[%clk 0:00:04.1]} 51. Kh3
{[%clk 0:00:09.5]} 51... Qf3+ {[%clk 0:00:04.4]} 52. Kh4 {[%clk 0:00:09.8]}
52... Qg4# {[%clk 0:00:04.7]} 0-1